[Event "Titled Tuesday Blitz August 16 Early 2022"]
[White "Seliverstov, Vladimir"]
[Black "Chen, Justin"]
[WhiteFideId "4192036"]
[BlackFideId "2098199"]
[WhiteElo "2489"]
[BlackElo "2289"]
[Result "0-1"]
[Round "04"]
[TimeControl "180+1"]
[Date "2022.08.16"]
[WhiteClock "0:01:17"]
[BlackClock "0:00:04"]

1. d4 {[%clk 0:03:00]}  Nf6 {[%clk 0:02:57]} 2. Bf4 {[%clk 0:02:59]}  d5 {[%clk 0:02:55]} 3. e3 {[%clk 0:02:59]}  c5 {[%clk 0:02:55]} 4. Nc3 {[%clk 0:02:59]}  cxd4 {[%clk 0:02:44]} 5. exd4 {[%clk 0:03:00]}  Bg4 {[%clk 0:02:44]} 6. Qd2 {[%clk 0:02:49]}  Nc6 {[%clk 0:02:38]} 7. h3 {[%clk 0:02:47]}  Bh5 {[%clk 0:02:30]} 8. g4 {[%clk 0:02:46]}  Bg6 {[%clk 0:02:31]} 9. Bg2 {[%clk 0:02:47]}  e6 {[%clk 0:02:30]} 10. a3 {[%clk 0:02:47]}  a6 {[%clk 0:02:21]} 11. Nge2 {[%clk 0:02:43]}  Bd6 {[%clk 0:02:14]} 12. O-O {[%clk 0:02:42]}  O-O {[%clk 0:02:13]} 13. Bxd6 {[%clk 0:02:29]}  Qxd6 {[%clk 0:02:14]} 14. Ng3 {[%clk 0:02:30]}  Rac8 {[%clk 0:01:35]} 15. f4 {[%clk 0:02:24]}  Na5 {[%clk 0:01:35]} 16. Qf2 {[%clk 0:02:22]}  h6 {[%clk 0:01:21]} 17. f5 {[%clk 0:02:15]}  exf5 {[%clk 0:01:13]} 18. Nxf5 {[%clk 0:02:16]}  Bxf5 {[%clk 0:01:13]} 19. Qxf5 {[%clk 0:02:16]}  Nc4 {[%clk 0:01:03]} 20. Rae1 {[%clk 0:01:52]}  Nxb2 {[%clk 0:00:53]} 21. Nxd5 {[%clk 0:01:52]}  Nxd5 {[%clk 0:00:53]} 22. Bxd5 {[%clk 0:01:51]}  Qg3+ {[%clk 0:00:25]} 23. Bg2 {[%clk 0:01:51]}  Nc4 {[%clk 0:00:22]} 24. Re7 {[%clk 0:01:46]}  Ne3 {[%clk 0:00:16]} 25. Qe4 {[%clk 0:01:31]}  Rxc2 {[%clk 0:00:12]} 26. Qxc2 {[%clk 0:01:26]}  Nxc2 {[%clk 0:00:13]} 27. Rf3 {[%clk 0:01:23]}  Qd6 {[%clk 0:00:12]} 28. Rxb7 {[%clk 0:01:23]}  Nxd4 {[%clk 0:00:12]} 29. Rf2 {[%clk 0:01:22]}  Ne6 {[%clk 0:00:08]} 30. a4 {[%clk 0:01:21]}  Qd1+ {[%clk 0:00:07]} 31. Kh2 {[%clk 0:01:18]}  Qxa4 {[%clk 0:00:08]} 32. Kg1 {[%clk 0:01:18]}  Qa1+ {[%clk 0:00:08]} 33. Rf1 {[%clk 0:01:18]}  Qe5 {[%clk 0:00:08]} 34. Kh1 {[%clk 0:01:18]}  Nf4 {[%clk 0:00:08]} 35. Ra7 {[%clk 0:01:17]}  Nxg2 {[%clk 0:00:07]} 36. Kxg2 {[%clk 0:01:18]}  Qd5+ {[%clk 0:00:04]} 37. Kh2 {[%clk 0:01:17]}  Re8 {[%clk 0:00:03]} 38. Rf2 {[%clk 0:01:16]}  Qe5+ {[%clk 0:00:03]} 39. Kg2 {[%clk 0:01:15]}  Qd5+ {[%clk 0:00:03]} 40. Kh2 {[%clk 0:01:16]}  Qd6+ {[%clk 0:00:01]} 41. Kg1 {[%clk 0:01:15]}  Re7 {[%clk 0:00:02]} 42. Ra8+ {[%clk 0:01:15]}  Kh7 {[%clk 0:00:02]} 43. Rc8 {[%clk 0:01:15]}  Re1+ {[%clk 0:00:02]} 44. Kg2 {[%clk 0:01:15]}  Qd5+ {[%clk 0:00:03]} 45. Kg3 {[%clk 0:01:16]}  Rg1+ {[%clk 0:00:03]} 46. Kf4 {[%clk 0:01:16]}  Qd4+ {[%clk 0:00:02]} 47. Kf3 {[%clk 0:01:16]}  Qd5+ {[%clk 0:00:02]} 48. Kf4 {[%clk 0:01:17]}  Qd6+ {[%clk 0:00:03]} 49. Kf3 {[%clk 0:01:17]}  Qf6+ {[%clk 0:00:03]} 50. Ke2 {[%clk 0:01:17]}  Qe6+ {[%clk 0:00:04]} 0-1


[Site "https://www.chess.com"]

[Event "Titled Tuesday Blitz August 16 Early 2022"]
[White "Shuvalova, Polina"]
[Black "Martin, Lewis"]
[WhiteFideId "24171760"]
[BlackFideId "410551"]
[WhiteElo "2330"]
[BlackElo "2145"]
[Result "1-0"]
[Round "04"]
[TimeControl "180+2"]
[Date "2022.08.18"]
[WhiteClock "0:00:00"]
[BlackClock "0:00:00"]

1. Nf3 {[%clk 0:00:00]}  Nf6 {[%clk 0:00:00]} 2. c4 {[%clk 0:00:00]}  c6 {[%clk 0:00:00]} 3. g3 {[%clk 0:00:00]}  d5 {[%clk 0:00:00]} 4. Bg2 {[%clk 0:00:00]}  e6 {[%clk 0:00:00]} 5. b3 {[%clk 0:00:00]}  Nbd7 {[%clk 0:00:00]} 6. Bb2 {[%clk 0:00:00]}  Bd6 {[%clk 0:00:00]} 7. O-O {[%clk 0:00:00]}  O-O {[%clk 0:00:00]} 8. d4 {[%clk 0:00:00]}  Qe7 {[%clk 0:00:00]} 9. Nbd2 {[%clk 0:00:00]}  b6 {[%clk 0:00:00]} 10. Ne5 {[%clk 0:00:00]}  Bb7 {[%clk 0:00:00]} 11. e4 {[%clk 0:00:00]}  Rfd8 {[%clk 0:00:00]} 12. Nxc6 {[%clk 0:00:00]}  Bxc6 {[%clk 0:00:00]} 13. e5 {[%clk 0:00:00]}  Ne8 {[%clk 0:00:00]} 14. exd6 {[%clk 0:00:00]}  Nxd6 {[%clk 0:00:00]} 15. Rc1 {[%clk 0:00:00]}  Nf6 {[%clk 0:00:00]} 16. Qe2 {[%clk 0:00:00]}  Rac8 {[%clk 0:00:00]} 17. Rfe1 {[%clk 0:00:00]}  Qb7 {[%clk 0:00:00]} 18. Nf3 {[%clk 0:00:00]}  dxc4 {[%clk 0:00:00]} 19. bxc4 {[%clk 0:00:00]}  b5 {[%clk 0:00:00]} 20. d5 {[%clk 0:00:00]}  exd5 {[%clk 0:00:00]} 21. Bxf6 {[%clk 0:00:00]}  gxf6 {[%clk 0:00:00]} 22. c5 {[%clk 0:00:00]}  Ne4 {[%clk 0:00:00]} 23. Nd4 {[%clk 0:00:00]}  Qd7 {[%clk 0:00:00]} 24. Qh5 {[%clk 0:00:00]}  Kh8 {[%clk 0:00:00]} 25. Bh3 {[%clk 0:00:00]}  Qc7 {[%clk 0:00:00]} 26. Bf5 {[%clk 0:00:00]}  Ng5 {[%clk 0:00:00]} 27. h4 {[%clk 0:00:00]} 1-0


[Site "https://www.chess.com"]

[Event "Titled Tuesday Blitz August 16 Early 2022"]
[White "Simonovic, Miroslav"]
[Black "Papayan, Oleg"]
[WhiteFideId "919152"]
[BlackFideId "4193911"]
[WhiteElo "2043"]
[BlackElo "2038"]
[Result "0-1"]
[Round "04"]
[TimeControl "180+2"]
[Date "2022.08.18"]
[WhiteClock "0:00:00"]
[BlackClock "0:00:00"]

1. d4 {[%clk 0:00:00]}  d5 {[%clk 0:00:00]} 2. Bg5 {[%clk 0:00:00]}  h6 {[%clk 0:00:00]} 3. Bh4 {[%clk 0:00:00]}  c5 {[%clk 0:00:00]} 4. c3 {[%clk 0:00:00]}  Qb6 {[%clk 0:00:00]} 5. Qc2 {[%clk 0:00:00]}  Nc6 {[%clk 0:00:00]} 6. e3 {[%clk 0:00:00]}  g5 {[%clk 0:00:00]} 7. Bg3 {[%clk 0:00:00]}  Bg7 {[%clk 0:00:00]} 8. Nd2 {[%clk 0:00:00]}  e5 {[%clk 0:00:00]} 9. dxe5 {[%clk 0:00:00]}  Nxe5 {[%clk 0:00:00]} 10. Ngf3 {[%clk 0:00:00]}  Nc6 {[%clk 0:00:00]} 11. Be2 {[%clk 0:00:00]}  Nge7 {[%clk 0:00:00]} 12. O-O {[%clk 0:00:00]}  Bf5 {[%clk 0:00:00]} 13. Bd3 {[%clk 0:00:00]}  Bxd3 {[%clk 0:00:00]} 14. Qxd3 {[%clk 0:00:00]}  Qxb2 {[%clk 0:00:00]} 15. Rab1 {[%clk 0:00:00]}  Qxc3 {[%clk 0:00:00]} 16. Qxc3 {[%clk 0:00:00]}  Bxc3 {[%clk 0:00:00]} 17. Rxb7 {[%clk 0:00:00]}  g4 {[%clk 0:00:00]} 18. Nb1 {[%clk 0:00:00]}  Bf6 {[%clk 0:00:00]} 19. Bh4 {[%clk 0:00:00]}  Bxh4 {[%clk 0:00:00]} 20. Nxh4 {[%clk 0:00:00]}  O-O-O {[%clk 0:00:00]} 21. Rb5 {[%clk 0:00:00]}  c4 {[%clk 0:00:00]} 22. f3 {[%clk 0:00:00]}  f5 {[%clk 0:00:00]} 23. fxg4 {[%clk 0:00:00]}  fxg4 {[%clk 0:00:00]} 24. Nf5 {[%clk 0:00:00]}  Kc7 {[%clk 0:00:00]} 25. Nxe7 {[%clk 0:00:00]}  Nxe7 {[%clk 0:00:00]} 26. Rf7 {[%clk 0:00:00]}  Rd7 {[%clk 0:00:00]} 27. Nc3 {[%clk 0:00:00]}  Kc6 {[%clk 0:00:00]} 28. Ra5 {[%clk 0:00:00]}  Rhd8 {[%clk 0:00:00]} 29. Ra6+ {[%clk 0:00:00]}  Kb7 {[%clk 0:00:00]} 30. Rxh6 {[%clk 0:00:00]}  Nc6 {[%clk 0:00:00]} 31. Rhh7 {[%clk 0:00:00]}  Rxf7 {[%clk 0:00:00]} 32. Rxf7+ {[%clk 0:00:00]}  Kb6 {[%clk 0:00:00]} 33. Rf4 {[%clk 0:00:00]}  Kc5 {[%clk 0:00:00]} 34. Rxg4 {[%clk 0:00:00]}  Kb4 {[%clk 0:00:00]} 35. Ne2 {[%clk 0:00:00]}  Ka3 {[%clk 0:00:00]} 36. Rg5 {[%clk 0:00:00]}  Kxa2 {[%clk 0:00:00]} 37. Rxd5 {[%clk 0:00:00]}  Rxd5 {[%clk 0:00:00]} 38. Nc3+ {[%clk 0:00:00]}  Kb3 {[%clk 0:00:00]} 39. Nxd5 {[%clk 0:00:00]}  c3 {[%clk 0:00:00]} 40. Nxc3 {[%clk 0:00:00]}  Kxc3 {[%clk 0:00:00]} 41. h4 {[%clk 0:00:00]}  a5 {[%clk 0:00:00]} 42. h5 {[%clk 0:00:00]}  Ne5 {[%clk 0:00:00]} 43. h6 {[%clk 0:00:00]}  a4 {[%clk 0:00:00]} 44. h7 {[%clk 0:00:00]}  Ng6 {[%clk 0:00:00]} 45. e4 {[%clk 0:00:00]}  Kd4 {[%clk 0:00:00]} 46. Kf2 {[%clk 0:00:00]}  a3 {[%clk 0:00:00]} 47. Kg3 {[%clk 0:00:00]}  a2 {[%clk 0:00:00]} 48. Kg4 {[%clk 0:00:00]}  a1=Q {[%clk 0:00:00]} 49. Kg5 {[%clk 0:00:00]}  Nh8 {[%clk 0:00:00]} 50. Kf5 {[%clk 0:00:00]}  Qf1+ {[%clk 0:00:00]} 51. Ke6 {[%clk 0:00:00]}  Qf8 {[%clk 0:00:00]} 52. g4 {[%clk 0:00:00]}  Kxe4 {[%clk 0:00:00]} 53. g5 {[%clk 0:00:00]}  Qg7 {[%clk 0:00:00]} 54. g6 {[%clk 0:00:00]}  Qxg6+ {[%clk 0:00:00]} 55. Kd7 {[%clk 0:00:00]}  Qxh7+ {[%clk 0:00:00]} 0-1


[Site "https://www.chess.com"]

[Event "Titled Tuesday Blitz August 16 Early 2022"]
[White "Skawinski, Arkadiusz"]
[Black "Vakhlamov, Igor L."]
[WhiteFideId "1126415"]
[BlackFideId "24126748"]
[WhiteElo "2149"]
[BlackElo "2401"]
[Result "0-1"]
[Round "04"]
[TimeControl "180+2"]
[Date "2022.08.18"]
[WhiteClock "0:00:00"]
[BlackClock "0:00:00"]

1. e4 {[%clk 0:00:00]}  c5 {[%clk 0:00:00]} 2. Nf3 {[%clk 0:00:00]}  Nc6 {[%clk 0:00:00]} 3. c3 {[%clk 0:00:00]}  Nf6 {[%clk 0:00:00]} 4. e5 {[%clk 0:00:00]}  Nd5 {[%clk 0:00:00]} 5. d4 {[%clk 0:00:00]}  cxd4 {[%clk 0:00:00]} 6. cxd4 {[%clk 0:00:00]}  d6 {[%clk 0:00:00]} 7. Bc4 {[%clk 0:00:00]}  Nb6 {[%clk 0:00:00]} 8. Bb5 {[%clk 0:00:00]}  dxe5 {[%clk 0:00:00]} 9. Nxe5 {[%clk 0:00:00]}  Bd7 {[%clk 0:00:00]} 10. Nxd7 {[%clk 0:00:00]}  Qxd7 {[%clk 0:00:00]} 11. Nc3 {[%clk 0:00:00]}  e6 {[%clk 0:00:00]} 12. O-O {[%clk 0:00:00]}  a6 {[%clk 0:00:00]} 13. Bxc6 {[%clk 0:00:00]}  Qxc6 {[%clk 0:00:00]} 14. Qg4 {[%clk 0:00:00]}  h5 {[%clk 0:00:00]} 15. Qg5 {[%clk 0:00:00]}  Nd5 {[%clk 0:00:00]} 16. Nxd5 {[%clk 0:00:00]}  Qxd5 {[%clk 0:00:00]} 17. Qxd5 {[%clk 0:00:00]}  exd5 {[%clk 0:00:00]} 18. Re1+ {[%clk 0:00:00]}  Kd7 {[%clk 0:00:00]} 19. Re5 {[%clk 0:00:00]}  f6 {[%clk 0:00:00]} 20. Rxd5+ {[%clk 0:00:00]}  Ke6 {[%clk 0:00:00]} 21. Ra5 {[%clk 0:00:00]}  Rc8 {[%clk 0:00:00]} 22. Bd2 {[%clk 0:00:00]}  Rc2 {[%clk 0:00:00]} 23. Re1+ {[%clk 0:00:00]}  Kd7 {[%clk 0:00:00]} 24. Bc3 {[%clk 0:00:00]}  Bd6 {[%clk 0:00:00]} 25. h3 {[%clk 0:00:00]}  Re8 {[%clk 0:00:00]} 26. Rxe8 {[%clk 0:00:00]}  Kxe8 {[%clk 0:00:00]} 27. g3 {[%clk 0:00:00]}  g6 {[%clk 0:00:00]} 28. Ra4 {[%clk 0:00:00]}  Kd7 {[%clk 0:00:00]} 29. d5 {[%clk 0:00:00]}  f5 {[%clk 0:00:00]} 30. Kg2 {[%clk 0:00:00]}  Bc5 {[%clk 0:00:00]} 31. Bd4 {[%clk 0:00:00]}  b5 {[%clk 0:00:00]} 32. Bxc5 {[%clk 0:00:00]}  bxa4 {[%clk 0:00:00]} 33. Ba3 {[%clk 0:00:00]}  Rd2 {[%clk 0:00:00]} 34. d6 {[%clk 0:00:00]}  Ke6 {[%clk 0:00:00]} 35. Kf3 {[%clk 0:00:00]}  g5 {[%clk 0:00:00]} 36. h4 {[%clk 0:00:00]}  g4+ {[%clk 0:00:00]} 37. Ke3 {[%clk 0:00:00]}  Rd1 {[%clk 0:00:00]} 38. f3 {[%clk 0:00:00]}  Rg1 {[%clk 0:00:00]} 39. Kf2 {[%clk 0:00:00]}  Rd1 {[%clk 0:00:00]} 40. Ke3 {[%clk 0:00:00]}  Rd5 {[%clk 0:00:00]} 41. fxg4 {[%clk 0:00:00]}  fxg4 {[%clk 0:00:00]} 42. Ke2 {[%clk 0:00:00]}  Rf5 {[%clk 0:00:00]} 43. Bb4 {[%clk 0:00:00]}  Rf3 {[%clk 0:00:00]} 44. Be1 {[%clk 0:00:00]}  Kxd6 {[%clk 0:00:00]} 45. Bf2 {[%clk 0:00:00]}  Kd5 {[%clk 0:00:00]} 46. Ke1 {[%clk 0:00:00]}  Kc4 {[%clk 0:00:00]} 47. Ke2 {[%clk 0:00:00]}  a3 {[%clk 0:00:00]} 48. bxa3 {[%clk 0:00:00]}  Rxa3 {[%clk 0:00:00]} 0-1


[Site "https://www.chess.com"]

[Event "Titled Tuesday Blitz August 16 Early 2022"]
[White "So, Wesley"]
[Black "Blanco Ronquillo, Humberto L."]
[WhiteFideId "5202213"]
[BlackFideId "3504239"]
[WhiteElo "2763"]
[BlackElo "2425"]
[Result "1-0"]
[Round "04"]
[TimeControl "180+1"]
[Date "2022.08.16"]
[WhiteClock "0:01:35"]
[BlackClock "0:00:25"]

1. Nf3 {[%clk 0:03:00]}  d5 {[%clk 0:02:59]} 2. d4 {[%clk 0:03:00]}  Nf6 {[%clk 0:02:58]} 3. c4 {[%clk 0:03:01]}  e6 {[%clk 0:02:58]} 4. Bg5 {[%clk 0:03:01]}  Be7 {[%clk 0:02:55]} 5. e3 {[%clk 0:03:00]}  Nbd7 {[%clk 0:02:53]} 6. Nc3 {[%clk 0:03:00]}  h6 {[%clk 0:02:54]} 7. Bf4 {[%clk 0:02:59]}  O-O {[%clk 0:02:46]} 8. c5 {[%clk 0:02:59]}  Nh5 {[%clk 0:02:33]} 9. Bd3 {[%clk 0:02:52]}  Nxf4 {[%clk 0:02:31]} 10. exf4 {[%clk 0:02:53]}  b6 {[%clk 0:02:10]} 11. b4 {[%clk 0:02:53]}  bxc5 {[%clk 0:02:10]} 12. bxc5 {[%clk 0:02:53]}  Bf6 {[%clk 0:02:10]} 13. Rc1 {[%clk 0:02:49]}  a5 {[%clk 0:02:07]} 14. g4 {[%clk 0:02:35]}  Nb8 {[%clk 0:02:04]} 15. h4 {[%clk 0:02:29]}  Nc6 {[%clk 0:02:02]} 16. Bb1 {[%clk 0:02:29]}  Be7 {[%clk 0:01:48]} 17. g5 {[%clk 0:02:27]}  f5 {[%clk 0:01:38]} 18. O-O {[%clk 0:02:16]}  Qe8 {[%clk 0:01:17]} 19. Re1 {[%clk 0:01:49]}  Qh5 {[%clk 0:01:16]} 20. Ne5 {[%clk 0:01:49]}  Qxd1 {[%clk 0:01:11]} 21. Rcxd1 {[%clk 0:01:50]}  Nxe5 {[%clk 0:01:10]} 22. Rxe5 {[%clk 0:01:48]}  c6 {[%clk 0:01:03]} 23. Rde1 {[%clk 0:01:47]}  Kf7 {[%clk 0:01:02]} 24. Bxf5 {[%clk 0:01:45]}  Bxc5 {[%clk 0:00:30]} 25. dxc5 {[%clk 0:01:36]}  exf5 {[%clk 0:00:30]} 26. Re7+ {[%clk 0:01:35]}  Kg8 {[%clk 0:00:30]} 27. Rc7 {[%clk 0:01:35]}  d4 {[%clk 0:00:25]} 28. Ree7 {[%clk 0:01:35]} 1-0


[Site "https://www.chess.com"]

[Event "Titled Tuesday Blitz August 16 Early 2022"]
[White "Tologon tegin, Semetei"]
[Black "Dubov, Daniil"]
[WhiteFideId "13800574"]
[BlackFideId "24126055"]
[WhiteElo "2174"]
[BlackElo "2791"]
[Result "0-1"]
[Round "04"]
[TimeControl "180+1"]
[Date "2022.08.16"]
[WhiteClock "0:00:07"]
[BlackClock "0:01:07"]

1. g3 {[%clk 0:03:00]}  g6 {[%clk 0:02:38]} 2. Bg2 {[%clk 0:02:59]}  Bg7 {[%clk 0:02:38]} 3. c4 {[%clk 0:02:55]}  e5 {[%clk 0:02:35]} 4. Nc3 {[%clk 0:02:54]}  Nf6 {[%clk 0:02:32]} 5. e4 {[%clk 0:02:50]}  O-O {[%clk 0:02:32]} 6. Nge2 {[%clk 0:02:50]}  d6 {[%clk 0:02:31]} 7. O-O {[%clk 0:02:50]}  Re8 {[%clk 0:02:29]} 8. d3 {[%clk 0:02:46]}  c6 {[%clk 0:02:25]} 9. h3 {[%clk 0:02:41]}  Nbd7 {[%clk 0:02:25]} 10. Bg5 {[%clk 0:02:37]}  h6 {[%clk 0:02:21]} 11. Be3 {[%clk 0:02:37]}  a6 {[%clk 0:02:16]} 12. Qd2 {[%clk 0:02:36]}  Kh7 {[%clk 0:02:16]} 13. a4 {[%clk 0:02:29]}  Nc5 {[%clk 0:02:15]} 14. Qc2 {[%clk 0:02:22]}  a5 {[%clk 0:02:12]} 15. f4 {[%clk 0:02:08]}  Na6 {[%clk 0:02:12]} 16. Rad1 {[%clk 0:01:46]}  Nb4 {[%clk 0:02:09]} 17. Qb3 {[%clk 0:01:41]}  Be6 {[%clk 0:02:05]} 18. d4 {[%clk 0:01:33]}  exd4 {[%clk 0:01:59]} 19. Nxd4 {[%clk 0:01:32]}  Nd7 {[%clk 0:01:53]} 20. Nxe6 {[%clk 0:01:29]}  Rxe6 {[%clk 0:01:54]} 21. Bf2 {[%clk 0:01:10]}  Qe7 {[%clk 0:01:49]} 22. f5 {[%clk 0:00:54]}  Re5 {[%clk 0:01:47]} 23. g4 {[%clk 0:00:39]}  Nc5 {[%clk 0:01:45]} 24. Bxc5 {[%clk 0:00:39]}  Rxc5 {[%clk 0:01:43]} 25. Ne2 {[%clk 0:00:33]}  Re8 {[%clk 0:01:37]} 26. Nd4 {[%clk 0:00:32]}  g5 {[%clk 0:01:29]} 27. Qf3 {[%clk 0:00:31]}  Bf6 {[%clk 0:01:28]} 28. b3 {[%clk 0:00:30]}  Na6 {[%clk 0:01:27]} 29. Qd3 {[%clk 0:00:28]}  Re5 {[%clk 0:01:11]} 30. Nf3 {[%clk 0:00:12]}  Rxe4 {[%clk 0:01:11]} 31. Qxd6 {[%clk 0:00:13]}  Qxd6 {[%clk 0:01:11]} 32. Rxd6 {[%clk 0:00:14]}  Kg7 {[%clk 0:01:12]} 33. Kh1 {[%clk 0:00:13]}  Nc5 {[%clk 0:01:11]} 34. Nd2 {[%clk 0:00:12]}  Re2 {[%clk 0:01:10]} 35. Bf3 {[%clk 0:00:10]}  R2e3 {[%clk 0:01:10]} 36. Rb1 {[%clk 0:00:10]}  Be5 {[%clk 0:01:07]} 37. f6+ {[%clk 0:00:07]}  Kg8 {[%clk 0:01:07]} 0-1


[Site "https://www.chess.com"]

[Event "Titled Tuesday Blitz August 16 Early 2022"]
[White "Turayev, Shahruh"]
[Black "Shimanov, Aleksandr"]
[WhiteFideId "14003856"]
[BlackFideId "4198603"]
[WhiteElo "2621"]
[BlackElo "2605"]
[Result "0-1"]
[Round "04"]
[TimeControl "180+1"]
[Date "2022.08.16"]
[WhiteClock "0:00:03"]
[BlackClock "0:00:03"]

1. d4 {[%clk 0:03:00]}  Nf6 {[%clk 0:02:59]} 2. c4 {[%clk 0:03:00]}  g6 {[%clk 0:03:00]} 3. g3 {[%clk 0:02:59]}  Bg7 {[%clk 0:03:00]} 4. Bg2 {[%clk 0:02:53]}  O-O {[%clk 0:03:01]} 5. Nc3 {[%clk 0:02:54]}  d6 {[%clk 0:03:01]} 6. Nf3 {[%clk 0:02:54]}  Nc6 {[%clk 0:03:02]} 7. O-O {[%clk 0:02:54]}  e5 {[%clk 0:03:02]} 8. d5 {[%clk 0:02:52]}  Nb8 {[%clk 0:03:02]} 9. e4 {[%clk 0:02:52]}  a5 {[%clk 0:03:02]} 10. Ne1 {[%clk 0:02:52]}  Na6 {[%clk 0:03:03]} 11. Nd3 {[%clk 0:02:52]}  Nd7 {[%clk 0:03:03]} 12. Be3 {[%clk 0:02:52]}  f5 {[%clk 0:03:01]} 13. a3 {[%clk 0:02:23]}  Nac5 {[%clk 0:02:46]} 14. Nxc5 {[%clk 0:02:22]}  Nxc5 {[%clk 0:02:47]} 15. b4 {[%clk 0:02:18]}  axb4 {[%clk 0:02:42]} 16. axb4 {[%clk 0:02:19]}  Rxa1 {[%clk 0:02:43]} 17. Qxa1 {[%clk 0:02:20]}  Nb3 {[%clk 0:02:44]} 18. Qd1 {[%clk 0:02:18]}  Nd4 {[%clk 0:02:38]} 19. Bxd4 {[%clk 0:02:19]}  exd4 {[%clk 0:02:39]} 20. Nb5 {[%clk 0:02:19]}  f4 {[%clk 0:02:06]} 21. Re1 {[%clk 0:01:48]}  Qf6 {[%clk 0:01:52]} 22. Nxc7 {[%clk 0:01:44]}  fxg3 {[%clk 0:01:51]} 23. fxg3 {[%clk 0:01:44]}  d3 {[%clk 0:01:45]} 24. Ne6 {[%clk 0:01:26]}  Bxe6 {[%clk 0:01:18]} 25. dxe6 {[%clk 0:01:27]}  Qd4+ {[%clk 0:01:19]} 26. Kh1 {[%clk 0:01:26]}  Re8 {[%clk 0:01:13]} 27. e5 {[%clk 0:01:15]}  Bxe5 {[%clk 0:01:09]} 28. Bd5 {[%clk 0:01:15]}  Kg7 {[%clk 0:00:45]} 29. Rf1 {[%clk 0:01:09]}  Bf6 {[%clk 0:00:43]} 30. Qf3 {[%clk 0:00:51]}  d2 {[%clk 0:00:38]} 31. h4 {[%clk 0:00:43]}  Ra8 {[%clk 0:00:25]} 32. Kg2 {[%clk 0:00:25]}  Ra1 {[%clk 0:00:20]} 33. Rxa1 {[%clk 0:00:17]}  Qxa1 {[%clk 0:00:20]} 34. e7 {[%clk 0:00:18]}  Qe5 {[%clk 0:00:05]} 35. Qd1 {[%clk 0:00:08]}  Qe1 {[%clk 0:00:05]} 36. e8=Q {[%clk 0:00:07]}  Qxe8 {[%clk 0:00:05]} 37. Qxd2 {[%clk 0:00:07]}  b6 {[%clk 0:00:05]} 38. Qd3 {[%clk 0:00:05]}  Qe5 {[%clk 0:00:05]} 39. b5 {[%clk 0:00:04]}  Qb2+ {[%clk 0:00:05]} 40. Kh3 {[%clk 0:00:04]}  Be5 {[%clk 0:00:06]} 41. Qf3 {[%clk 0:00:03]}  Bf6 {[%clk 0:00:05]} 42. Qe4 {[%clk 0:00:03]}  Qc1 {[%clk 0:00:04]} 43. Qe8 {[%clk 0:00:03]}  Qf1+ {[%clk 0:00:03]} 44. Kh2 {[%clk 0:00:03]}  Be5 {[%clk 0:00:03]} 0-1


[Site "https://www.chess.com"]